[Event "Marmaris Karya-18 GM-May 2022"]
[Site "Icmeler-Marmaris"]
[Date "2022.05.13"]
[Round "7.3"]
[White "Angun, Batu"]
[Black "Darban, Morteza"]
[Result "1/2-1/2"]
[ECO "D63"]
[WhiteElo "2326"]
[BlackElo "2279"]
[Annotator "TA"]
[PlyCount "61"]
[EventDate "2022.05.11"]
[EventCountry "TUR"]
[SourceTitle "playchess.com"]
[Source "ChessBase"]
[SourceQuality "1"]
[TimeControl "5400+30"]

{[%evp 21,61,28,29,19,24,22,28,27,25,19,34,29,40,20,30,21,23,0,0,0,0,0,0,-13,0,0,0,0,0,-10,0,0,0,0,0,-10,0,0,0,-36,0,-1408]} 1. d4 {[%emt 0:01:00]} Nf6 {[%emt 0:08:00]} 2. c4 {[%emt 0:00:30]} e6 {[%emt 0:00:00]} 3. Nf3 {[%emt 0:00:30]} d5 {[%emt 0:00:00]} 4. Nc3 {[%emt 0:00:30]} Be7 {[%emt 0:00:30]} 5. Bg5 {[%emt 0:02:30]} O-O {[%emt 0:01:30]} 6. e3 {[%emt 0:01:30]} Nbd7 {[%emt 0:00:00]} 7. Rc1 {[%emt 0:02:30]} a6 {[%emt 0:07:00]} 8. cxd5 {[%emt 0:05:30]} exd5 {[%emt 0:00:30]} 9. Bd3 {[%emt 0:00:30]} c6 {[%emt 0:02:30]} 10. O-O {[%emt 0:06:30]} Re8 {[%emt 0:00:30]} 11. h3 {[%emt 0:01:30]} Nf8 {[%emt 0:09:30]} 12. Ne5 {[%emt 0:01:30] D63: Queen's Gambit Declined: Classical: 7 Rc1.} Ne4 {[%emt 0:16:30] [#]} 13. Bf4 $146 {[%emt 0:13:30]} ({Predecessor:} 13. Bxe7 Qxe7 14. Bxe4 dxe4 15. Nc4 Bf5 16. Qe2 Rad8 17. Rfd1 Qg5 18. Kh2 Ng6 19. Nd2 Rd6 {1-0 (39) Nasirov,I (2142)-Moffat,A (2248) Toronto 2011}) 13... Nd6 {[%emt 0:05:30]} 14. Bh2 {[%emt 0:09:30] White has an edge.} g6 {[%emt 0:10:30]} 15. Qb3 {[%emt 0:02:30]} Ra7 {[%emt 0:02:30]} 16. Na4 {[%emt 0:13:30]} Nd7 {[%emt 0:14:41]} 17. Nxd7 {[%emt 0:05:30]} Bxd7 {[%emt 0:00:11]} 18. Nc5 {[%emt 0:00:30]} Bc8 {[%emt 0:01:10]} 19. Qc2 {[%emt 0:08:30]} Bf8 {[%emt 0:06:37]} 20. Rfe1 {[%emt 0:04:54]} Bf5 {[%emt 0:01:26]} 21. Bxf5 {[%emt 0:04:00]} Nxf5 {[%emt 0:00:03]} 22. Qb3 {[%emt 0:00:08]} Bd6 {[%emt 0:01:41]} 23. Bxd6 {[%emt 0:01:52]} Nxd6 {[%emt 0:00:02]} 24. Qc2 {[%emt 0:00:33]} Ra8 {[%emt 0:03:00]} 25. Nd3 {[%emt 0:03:21]} Qb6 {[%emt 0:03:01]} 26. Ne5 {[%emt 0:01:15]} Re7 {[%emt 0:00:27]} 27. Nd3 {[%emt 0:02:11]} Rae8 {[%emt 0:00:12]} 28. Qc5 {[%emt 0:00:11]} Qb5 {[%emt 0:01:06]} 29. Qxd6 {[%emt 0:01:18]} Qxd3 {[%emt 0:00:03]} 30. Qb4 {[%emt 0:00:01]} Qb5 {[%emt 0:01:34]} 31. Ra1 $2 {[%emt 0:00:45][%mdl 40960] Weighted Error Value: White=0.07 (flawless) /Black=0.06 (flawless) . An unexpected result.} 1/2-1/2

[Event "Marmaris Karya-18 GM-May 2022"]
[Site "Icmeler-Marmaris"]
[Date "2022.05.13"]
[Round "7.4"]
[White "Ozdemir, Serhan Berat"]
[Black "Blesic, Vaso"]
[Result "0-1"]
[ECO "C54"]
[WhiteElo "2117"]
[BlackElo "2264"]
[Annotator "TA"]
[PlyCount "110"]
[EventDate "2022.05.11"]
[EventCountry "TUR"]
[SourceTitle "playchess.com"]
[Source "ChessBase"]
[SourceQuality "1"]
[TimeControl "5400+30"]

{[%evp 10,109,16,13,18,14,13,0,0,0,0,-23,16,-91,-88,-137,-14,-16,-26,-33,-27,-24,-26,-59,43,20,43,-46,-35,-117,0,0,73,6,6,6,6,8,6,8,6,0,2,2,5,-6,-3,-14,-8,-33,-33,-37,0,-30,0,-43,0,-27,0,-47,-37,-72,-47,-72,-12,-61,-17,-18,-21,-57,-83,-513,-491,-1170,-1170,-1664,-177,-985,-968,-1353,-1354,-1312,-1231,-29991,-2187,-1890,-1707,-29975,-29976,-29988,-29989,-29990,-29989,-29991,-29991,-29992,-29993,-29994,-29994,-29995,-29996,-29999]} 1. e4 {[%emt 0:08:00]} e5 {[%emt 0:01:00]} 2. Nf3 {[%emt 0:00:30]} Nc6 {[%emt 0:00:30]} 3. Bc4 {[%emt 0:00:30]} Bc5 {[%emt 0:00:30]} 4. d3 {[%emt 0:00:30]} Nf6 {[%emt 0:00:00]} 5. c3 {[%emt 0:01:30]} O-O {[%emt 0:04:00]} 6. Nbd2 {[%emt 0:03:30]} (6. O-O {is more complex.} d6 7. Bg5 h6 8. Bh4) 6... a6 {[%emt 0:02:30] C54: Giuoco Piano: 4 c3 Nf6, main lines with 5 d4 and 5 d3.} 7. Bb3 {[%emt 0:00:00]} d5 {[%emt 0:03:30]} 8. Qe2 {[%emt 0:00:00]} Re8 {[%emt 0:01:30] The position is equal.} 9. h3 {[%emt 0:00:30]} h6 {[%emt 0:07:30]} 10. g4 {[%emt 0:09:30]} Be6 {[%emt 0:07:30]} (10... a5 $5 {[%cal Ra5a4]}) 11. Nf1 {[%emt 0:03:30] [#]} (11. g5 $11 hxg5 12. Nxg5) 11... Na5 $146 {[%emt 0:07:30]} ({Predecessor:} 11... dxe4 12. dxe4 Bxb3 13. axb3 Qe7 14. Ng3 Qe6 15. b4 Bf8 16. g5 hxg5 17. Nxg5 Qd7 {½-½ (44) Holtel,J (1930)-Reinhold,K (1926) Germany 2014}) 12. g5 {[%emt 0:03:30]} (12. Bxd5 $142 Bxd5 13. exd5) 12... hxg5 {[%emt 0:15:30]} (12... dxe4 $1 $17 13. dxe4 Nxb3 14. axb3 hxg5) 13. Bxg5 $11 {[%emt 0:01:30]} Nxb3 {[%emt 0:00:30]} 14. axb3 {[%emt 0:00:00]} dxe4 {[%emt 0:00:30]} 15. dxe4 {[%emt 0:00:00]} Bxb3 {[%emt 0:00:30]} 16. Rg1 {[%emt 0:03:30]} b5 {[%emt 0:07:30]} (16... Re6 $1 $15) 17. Nh4 {[%emt 0:02:30][%mdl 1024] Strongly threatening Qf3. White has compensation.} Re6 $1 {[%emt 0:04:30]} 18. Qf3 {[%emt 0:07:30]} ({Better is} 18. Nd2 $14 Bc4 19. Nxc4 bxc4 20. Nf5) 18... Kf8 {[%emt 0:04:30]} 19. Ng3 {[%emt 0:02:30]} ({White should play} 19. Nf5 $15 g6 20. Nd2) 19... Qd7 {[%emt 0:01:30] Black is more active.} (19... g6 $17 {White must now prevent ...Qd6.} 20. Nf1 Bc2) 20. Ngf5 $1 {[%emt 0:04:30]} Qc6 {[%emt 0:06:30] [#]} (20... Rd8 $11) 21. Nxg7 $1 {[%emt 0:14:30]} Qxe4+ {[%emt 0:03:30]} (21... Rd6 $2 22. Nhf5 Qxe4+ 23. Qxe4 Nxe4 24. Be7+ Kg8 25. Ne6+ Kh7 26. Nxc5 Nxc5 27. Bxd6 (27. Nxd6 cxd6 28. Bxd6 Nd3+ 29. Ke2 Nxb2 $18) 27... cxd6 28. Rg7+ (28. Nxd6 Rd8 $16) 28... Kh8 29. Rg4 $18) 22. Qxe4 {[%emt 0:00:30]} Nxe4 {[%emt 0:00:00]} 23. Nxe6+ {[%emt 0:00:30]} Bxe6 {[%emt 0:00:00] A strong pair of Bishops.} 24. Be3 {[%emt 0:01:30]} Bd6 {[%emt 0:06:07]} 25. Nf3 {[%emt 0:01:30]} Bxh3 {[%emt 0:01:55]} 26. Rh1 {[%emt 0:00:30]} Bc8 {[%emt 0:00:03][%cal Bh3c8,Bc8b7,Bb7d5][%mdl 32]} 27. O-O-O {[%emt 0:02:30]} Ke7 {[%emt 0:00:37] And now ...Bg4 would win.} 28. Rdg1 {[%emt 0:04:30] Against Bg4} Bb7 {[%emt 0:01:26][%cal Oe4c3] Hoping for ...Nxc3!} 29. Rg7 {[%emt 0:02:30]} Bd5 {[%emt 0:00:57][%cal Oe4f2]} 30. Rh5 {[%emt 0:02:30]} Nf6 {[%emt 0:08:24]} 31. Rh3 {[%emt 0:01:30]} (31. Bg5 $5 {[%cal Rh5h6]} Kd7 32. Bxf6 Bxf3 33. Rh6 $11 (33. Rxf7+ Ke6 $17)) 31... Ne4 {[%emt 0:00:34]} 32. Rh5 {[%emt 0:02:45]} Nf6 {[%emt 0:00:24]} 33. Rh3 {[%emt 0:02:07]} Ne4 {[%emt 0:00:59]} 34. Nh4 {[%emt 0:00:46]} (34. Rh5 $11 {should be considered.}) 34... Ke6 {[%emt 0:01:17]} 35. Ng2 {[%emt 0:02:52]} Rd8 {[%emt 0:01:33]} (35... a5 $5 {[%cal Ra5a4]} 36. f4 Kd7 37. fxe5 Bxe5 $15) 36. f4 {[%emt 0:00:47]} Bb3 {[%emt 0:00:53]} (36... Kd7 $17) 37. Rh6+ {[%emt 0:02:19]} (37. Rh1 $1 $11) 37... f6 {[%emt 0:00:43]} (37... Kd7 $5 {[%cal Rd6f8]} 38. Rg4 Kc8 39. fxe5 Bxe5 $1 $17) 38. Rh1 $1 {[%emt 0:00:13]} a5 {[%emt 0:00:55]} 39. Re1 {[%emt 0:00:14]} a4 $36 {[%emt 0:00:38][%mdl 2048] Black has strong initiative.} 40. Bg1 $2 {[%emt 0:02:56][%mdl 8192] Now White is beyond hope.} (40. fxe5 $17 fxe5 41. Bg5 Nxg5 42. Rxg5) 40... a3 $19 {[%emt 0:00:38]} 41. Kb1 {[%emt 0:00:00]} ({Don't go for} 41. Rxe4 $2 a2 42. f5+ Kxf5) (41. Ne3 $142 Bf8 42. f5+ Kd6 43. Rg6) 41... Nd2+ {[%emt 0:00:12]} 42. Ka1 {[%emt 0:00:08]} Nf3 $2 {[%emt 0:00:47]} (42... Ra8 {( -> ...axb2+)} 43. f5+ Kxf5 44. Nh4+ Ke6 45. Rxe5+ Bxe5 46. Re7+ Kxe7 47. Ng6+ Kf7 48. Nxe5+ fxe5 49. bxa3 Rxa3+ 50. Kb2 Ra2+ 51. Kc1 Nc4 52. Kb1 Rc2 53. Bc5 Nd2+ 54. Ka1 Ra2#) 43. Ne3 $2 {[%emt 0:01:04]} (43. Rf1 Nd2 44. Rf2) 43... exf4 {[%emt 0:00:35]} 44. Rf1 {[%emt 0:00:20]} Nxg1 {[%emt 0:00:14]} 45. Ng4 {[%emt 0:00:14]} Ne2 {[%emt 0:00:26] ...Bf8 is the strong threat.} 46. Rf2 {[%emt 0:00:23] [#]} axb2+ {[%emt 0:00:24]} (46... Be5 $142 $1 47. Rf1 Rd2 48. Rxc7 axb2+ 49. Kb1 Bxc7 50. Re1 Bd6 51. Nh2 Bd5 52. Rxe2+ Rxe2 53. Ng4 Be4+ 54. Ka2 b1=Q#) 47. Kxb2 {[%emt 0:00:01]} Bc4 {[%emt 0:00:05]} 48. Rh2 {[%emt 0:00:38]} Ra8 {[%emt 0:00:21] Black mates.} 49. Kb1 {[%emt 0:00:29]} Nxc3+ {[%emt 0:00:14]} 50. Kc2 {[%emt 0:00:02]} b4 {[%emt 0:00:22][%cal Bb5b4,Bb4b3][%mdl 32]} 51. Rh6 {[%emt 0:00:09]} Ra2+ {[%emt 0:00:21]} 52. Kc1 {[%emt 0:00:01]} b3 {[%emt 0:00:44][%cal Rd6a3]} 53. Rxf6+ {[%emt 0:00:02]} Kd5 {[%emt 0:00:09][%cal Rd6a3]} 54. Rg5+ {[%emt 0:00:03]} Kd4 {[%emt 0:00:14][%cal Rd6a3]} 55. Ne3 {[%emt 0:00:54]} Ba3# {[%emt 0:00:06] Weighted Error Value: White=0.97/Black=0.47} 0-1

[Event "Marmaris Karya-18 GM-May 2022"]
[Site "Icmeler-Marmaris"]
[Date "2022.05.13"]
[Round "7.5"]
[White "Inci, Okan"]
[Black "Toufighi, Homayoon"]
[Result "0-1"]
[ECO "E94"]
[WhiteElo "1688"]
[BlackElo "2439"]
[Annotator "TA"]
[PlyCount "72"]
[EventDate "2022.05.11"]
[EventCountry "TUR"]
[SourceTitle "playchess.com"]
[Source "ChessBase"]
[SourceQuality "1"]
[TimeControl "5400+30"]

{[%evp 21,72,50,49,55,53,41,64,47,48,13,56,45,51,43,53,-9,0,-67,-45,-52,-47,-95,-91,-186,-146,-234,-295,-260,-301,-308,-316,-261,-290,-306,-306,-288,-260,-307,-294,-573,-547,-552,-535,-522,-530,-1432,-1387,-29988,-29971,-29972,-29964,-29998,-29999]} 1. d4 {[%emt 0:05:00]} Nf6 {[%emt 0:02:00]} 2. Nf3 {[%emt 0:01:30]} g6 {[%emt 0:00:30]} 3. c4 {[%emt 0:00:30]} Bg7 {[%emt 0:00:30]} 4. Nc3 {[%emt 0:00:30]} d6 {[%emt 0:00:00]} 5. e4 {[%emt 0:01:30]} O-O {[%emt 0:01:00]} 6. Be2 {[%emt 0:00:30]} e5 {[%emt 0:02:30]} 7. O-O {[%emt 0:01:30]} Nbd7 {[%emt 0:01:30]} 8. Be3 {[%emt 0:01:30]} c6 {[%emt 0:00:30]} 9. d5 {[%emt 0:02:30]} c5 {[%emt 0:00:30]} 10. Ne1 {[%emt 0:00:30]} Ne8 {[%emt 0:00:30]} 11. Nd3 {[%emt 0:01:30]} f5 {[%emt 0:00:30]} 12. f3 {[%emt 0:03:30] E94: King's Indian: Classical: 6 Be2 e5 7 0-0: Various Black 7th moves.} f4 {[%emt 0:02:30]} 13. Bd2 {[%emt 0:00:00]} h5 {[%emt 0:00:30]} 14. Rb1 {[%emt 0:01:00] White is slightly better.} g5 {[%emt 0:03:30] [#]} 15. b4 $146 {[%emt 0:02:30]} ({Predecessor:} 15. Nf2 Rf6 16. a3 Rg6 17. g4 fxg3 18. hxg3 Nef6 19. Kg2 Nf8 20. Rh1 Bh6 21. Qc1 {½-½ (41) Ostenstad,B (2474)-Djurhuus,R (2446) Norway 2010}) 15... b6 {[%emt 0:01:30]} 16. a4 {[%emt 0:00:30][%cal Ba2a4,Ba4a5][%mdl 32]} Rf6 {[%emt 0:00:00]} 17. a5 {[%emt 0:00:30]} Rg6 {[%emt 0:00:00]} (17... cxb4 18. Nxb4 (18. Rxb4 bxa5 19. Rb1 h4 $14) 18... Nc5 19. Nc6 $16) 18. h3 {[%emt 0:03:30]} (18. Be1 $14) 18... Ndf6 {[%emt 0:06:30]} 19. bxc5 {[%emt 0:00:30]} (19. axb6 $11 axb6 20. Qc2) 19... bxc5 $15 {[%emt 0:01:30]} 20. Nf2 {[%emt 0:00:30] Against g4} Qxa5 {[%emt 0:01:30]} 21. Nb5 {[%emt 0:00:00] [#] Prevents Qc7. Black continues to play with concentration.} (21. Bd3 $15) 21... Qd8 $1 $17 {[%emt 0:00:30]} 22. Qa4 {[%emt 0:03:00]} (22. Be1 $17 {was worth a try.}) 22... a6 {[%emt 0:00:30]} 23. Qa3 {[%emt 0:18:30]} (23. Na3 $17) 23... g4 $19 {[%emt 0:01:30]} 24. fxg4 {[%emt 0:01:30]} hxg4 {[%emt 0:00:30]} 25. hxg4 {[%emt 0:01:30]} Nxg4 {[%emt 0:00:30]} (25... Bxg4 26. Nxg4 axb5 27. Nxf6+ Nxf6 28. Qd3 $19) 26. Nxg4 {[%emt 0:15:30]} Bxg4 {[%emt 0:00:30]} 27. Bxg4 {[%emt 0:01:30]} Rxg4 {[%emt 0:00:30]} ({Inferior is} 27... axb5 28. Qf3 $17 (28. Qh3 Rh6 $17)) 28. Qh3 {[%emt 0:01:30]} Qg5 {[%emt 0:01:30]} 29. Nc3 {[%emt 0:01:30]} Nf6 {[%emt 0:00:30] Hoping for ...Ra7.} 30. Be1 $2 {[%emt 0:11:30]} (30. Rf3 {keeps fighting.} Kf7 31. Rb7+ Kg6 32. g3 (32. Ne2 $2 Rh8 $19)) 30... Kf7 {[%emt 0:00:30] ...Rh8 is the strong threat.} 31. Rb7+ {[%emt 0:02:08] [#]} Kg6 $1 {[%emt 0:00:00] White must now prevent ...Rh8.} 32. Qf3 {[%emt 0:00:44]} Rh8 {[%emt 0:01:00] Strongly threatening ...Qh6.} 33. Rf2 {[%emt 0:03:55]} Rg3 {[%emt 0:00:30] Threatens to win with ...Ng4.} 34. Qd1 {[%emt 0:01:39]} Qh4 {[%emt 0:00:00][%csl Gh8][%cal Rh4h1] Black mates.} 35. Kf1 {[%emt 0:00:19]} Re3 {[%emt 0:00:00][%cal Rh4h1]} 36. Rf3 {[%emt 0:02:20]} Qh1+ {[%emt 0:00:30] Weighted Error Value: White=0.80/Black=0.05 (flawless)} 0-1

[Event "Marmaris Karya-18 GM-May 2022"]
[Site "Icmeler-Marmaris"]
[Date "2022.05.13"]
[Round "8.2"]
[White "Darban, Morteza"]
[Black "Gunduz, Umut Erdem"]
[Result "1/2-1/2"]
[ECO "C68"]
[WhiteElo "2279"]
[BlackElo "2316"]
[Annotator "TA"]
[PlyCount "28"]
[EventDate "2022.05.10"]
[EventType "tourn"]
[EventCountry "TUR"]
[SourceTitle "playchess.com"]
[Source "ChessBase"]
[SourceQuality "1"]
[TimeControl "5400+30"]

{[%evp 26,28,0,0,0]} 1. e4 {[%emt 0:07:00]} e5 {[%emt 0:01:00]} 2. Nf3 {[%emt 0:01:30]} Nc6 {[%emt 0:00:00]} 3. Bb5 {[%emt 0:00:00]} a6 {[%emt 0:00:00]} 4. Bxc6 {[%emt 0:00:00]} dxc6 {[%emt 0:00:00]} 5. O-O {[%emt 0:00:00]} Bg4 {[%emt 0:00:00]} 6. h3 {[%emt 0:00:00]} h5 {[%emt 0:00:00]} 7. c3 {[%emt 0:00:30]} Qd3 {[%emt 0:00:00]} 8. hxg4 {[%emt 0:00:00]} hxg4 {[%emt 0:00:30]} 9. Nxe5 {[%emt 0:00:00]} Bd6 {[%emt 0:00:00]} 10. Nxd3 {[%emt 0:00:00]} Bh2+ {[%emt 0:00:00]} 11. Kh1 {[%emt 0:00:00]} Bg3+ {[%emt 0:00:00]} 12. Kg1 {[%emt 0:00:30]} Bh2+ {[%emt 0:00:00]} 13. Kh1 {[%emt 0:00:00] [#]} Bg3+ $146 {[%emt 0:00:00]} ({Predecessor:} 13... Bd6+) 14. Kg1 {[%emt 0:00:00]} Bh2+ {[%emt 0:00:00] An even fight not without its subleties. C68: Ruy Lopez: Exchange Variation, sidelines.} 1/2-1/2

[Event "Marmaris Karya-18 GM-May 2022"]
[Site "Icmeler-Marmaris"]
[Date "2022.05.13"]
[Round "8.3"]
[White "Blesic, Vaso"]
[Black "Angun, Batu"]
[Result "1/2-1/2"]
[ECO "D85"]
[WhiteElo "2264"]
[BlackElo "2326"]
[Annotator "TA"]
[PlyCount "30"]
[EventDate "2022.05.10"]
[EventType "tourn"]
[EventCountry "TUR"]
[SourceTitle "playchess.com"]
[Source "ChessBase"]
[SourceQuality "1"]
[TimeControl "5400+30"]

{[%evp 15,30,22,13,29,71,0,0,0,0,0,0,0,0,0,0,0,0]} 1. d4 {[%emt 0:04:00]} Nf6 {[%emt 0:01:00]} 2. c4 {[%emt 0:00:30]} g6 {[%emt 0:00:00]} 3. Nc3 {[%emt 0:00:00]} d5 {[%emt 0:00:00]} 4. cxd5 {[%emt 0:00:00]} Nxd5 {[%emt 0:00:30]} 5. e4 {[%emt 0:00:00]} Nxc3 {[%emt 0:00:00]} 6. bxc3 {[%emt 0:00:00]} Bg7 {[%emt 0:00:00]} 7. Nf3 $1 {[%emt 0:00:00][%mdl 4] is now more promising than 7.Bc4.} c5 {[%emt 0:00:00]} 8. Be3 {[%emt 0:00:00]} Qa5 {[%emt 0:00:00]} 9. Nd2 {[%emt 0:00:30] D85: Exchange Grünfeld: Unusual White 7th moves and lines with 7 Nf3.} Nc6 {[%emt 0:00:30][%cal Rc5d4] [#]} 10. Nb3 $146 {[%emt 0:00:00]} (10. d5 $1 $16 {[%cal Rd5c6]} Ne5 11. Rc1) ({Predecessor:} 10. d5 Ne5 11. Rc1 O-O 12. h3 e6 13. f4 Nd7 14. dxe6 fxe6 15. e5 Nb6 16. c4 Qxa2 {1-0 (25) Fernandez,J (2414)-Geiser,A (2225) ICCF email 2017}) 10... Qxc3+ $11 {[%emt 0:00:00] The position is equal.} 11. Bd2 {[%emt 0:00:00]} Qb2 {[%emt 0:00:00]} 12. Bc1 {[%emt 0:00:30]} ({Of course not} 12. d5 Nd4 13. Rc1 Qxa2 14. Nxd4 Bxd4 15. Bb5+ Kf8 $15) 12... Qc3+ {[%emt 0:00:30]} 13. Bd2 {[%emt 0:00:00]} Qb2 {[%emt 0:00:00]} 14. Bc1 {[%emt 0:00:00]} (14. d5 Nd4 15. Rc1 Qxa2 16. Nxd4 Bxd4 17. Bb5+ Bd7 18. Bxd7+ Kxd7) 14... Qc3+ {[%emt 0:00:00]} 15. Bd2 {[%emt 0:00:00]} Qb2 {[%emt 0:00:00] Weighted Error Value: White=0.12 (very precise) /Black=0.10 (very precise)} 1/2-1/2

[Event "Marmaris Karya-18 GM-May 2022"]
[Site "Icmeler-Marmaris"]
[Date "2022.05.13"]
[Round "8.5"]
[White "Sevdimaliyev, Urfan"]
[Black "Inci, Okan"]
[Result "1-0"]
[ECO "D03"]
[WhiteElo "2331"]
[BlackElo "1688"]
[Annotator "TA"]
[PlyCount "53"]
[EventDate "2022.05.10"]
[EventType "tourn"]
[EventCountry "TUR"]
[SourceTitle "playchess.com"]
[Source "ChessBase"]
[SourceQuality "1"]
[TimeControl "5400+30"]

{[%evp 11,53,-2,20,28,33,9,37,29,50,57,61,54,61,58,59,61,59,54,79,97,104,108,100,60,135,34,138,132,144,147,135,127,139,149,267,273,305,295,1135,1102,1118,1112,1312,494]} 1. d4 {[%emt 0:12:00]} Nf6 {[%emt 0:02:00]} 2. Nf3 {[%emt 0:01:30]} e6 {[%emt 0:00:00]} 3. Bg5 {[%emt 0:02:30]} d5 {[%emt 0:00:00]} 4. Nbd2 {[%emt 0:00:00]} c5 {[%emt 0:01:30]} 5. e3 {[%emt 0:00:00]} Nc6 {[%emt 0:02:30]} 6. c3 {[%emt 0:00:00]} Qb6 {[%emt 0:02:30]} 7. Rb1 {[%emt 0:01:00] D03: 1 d4 d5 2 Nf3 Nf6 3 Bg5, including Torre Attack with early ...d5.} Bd7 {[%emt 0:01:30]} 8. Bd3 {[%emt 0:01:30]} cxd4 {[%emt 0:00:00]} 9. exd4 {[%emt 0:00:30] White is slightly better.} Be7 {[%emt 0:04:00]} 10. O-O {[%emt 0:00:00]} h6 {[%emt 0:00:30]} 11. Bh4 {[%emt 0:03:00]} O-O {[%emt 0:14:30]} 12. Ne5 {[%emt 0:01:30] Strongly threatening Bxf6.} Qd8 {[%emt 0:07:30] [#]} 13. f4 $146 {[%emt 0:01:30]} ({Predecessor:} 13. Ndf3 Ne8 14. Bg3 Nd6 15. Re1 Rc8 16. Bf4 Nxe5 17. Nxe5 Be8 18. Qg4 f5 19. Qe2 {1-0 (37) Ivanenko,B-Goncharov,O (2193) Kiev 2006}) 13... Ne8 {[%emt 0:02:30]} 14. Bf2 {[%emt 0:03:30]} Nxe5 {[%emt 0:02:30]} 15. fxe5 {[%emt 0:02:30]} f5 {[%emt 0:00:30] [#]} 16. exf6 $1 {[%emt 0:00:30]} Nxf6 {[%emt 0:01:30]} 17. Qe2 {[%emt 0:01:30] White is more active.} Qc7 {[%emt 0:02:30]} (17... Bd6 $14) 18. Nf3 {[%emt 0:04:30]} ({White should try} 18. Bg3 $16 Qd8 19. Nf3) 18... Ng4 {[%emt 0:18:30]} (18... Bd6 $1 $14) 19. Bg3 $16 {[%emt 0:10:30]} Bd6 {[%emt 0:00:00]} 20. Bxd6 {[%emt 0:00:30]} Qxd6 {[%emt 0:00:00]} 21. Rbe1 {[%emt 0:03:30]} Rae8 {[%emt 0:14:30]} 22. h3 {[%emt 0:09:30]} e5 {[%emt 0:02:30]} (22... Rxf3 $16 23. gxf3 (23. hxg4 Rxf1+ 24. Rxf1 e5 $11) 23... Ne3) 23. dxe5 $18 {[%emt 0:06:30]} ({Don't do} 23. hxg4 $6 e4 $16) 23... Qc5+ {[%emt 0:00:36]} 24. Kh1 {[%emt 0:02:30]} Rxe5 $2 {[%emt 0:08:18]} (24... Nf6 25. Nd4 Bc6) 25. Nxe5 {[%emt 0:00:30] White is clearly winning.} Nf2+ {[%emt 0:00:36] [#]} 26. Rxf2 $1 {[%emt 0:01:30]} Rxf2 {[%emt 0:00:13]} (26... Qxf2 27. Nxd7) 27. Qe3 {[%emt 0:00:30] Weighted Error Value: White=0.11 (very precise) /Black=0.33} (27. Qh5 $142 Bb5 28. Qg6 Bxd3 29. Nxd3) 1-0

[Event "Marmaris Karya-18 GM-May 2022"]
[Site "Icmeler-Marmaris"]
[Date "2022.05.14"]
[Round "8.9"]
[White "Inci, Okan"]
[Black "Odeev, Handszar"]
[Result "0-1"]
[ECO "D91"]
[WhiteElo "1688"]
[BlackElo "2305"]
[Annotator "TA"]
[PlyCount "55"]
[EventDate "2022.05.11"]
[EventCountry "TUR"]
[SourceTitle "playchess.com"]
[Source "ChessBase"]
[SourceQuality "1"]
[TimeControl "5400+30"]

{[%evp 10,55,18,16,353,360,427,363,438,374,464,473,520,420,428,214,813,483,657,331,328,132,300,116,335,192,439,242,987,960,957,541,551,68,459,60,449,447,710,19,331,18,583,424,377,159,493,475]} 1. d4 {[%emt 0:12:00]} Nf6 {[%emt 0:11:00]} 2. Nf3 {[%emt 0:00:30]} g6 {[%emt 0:00:00]} 3. c4 {[%emt 0:00:30]} Bg7 {[%emt 0:06:00]} 4. Nc3 {[%emt 0:01:30][%cal Bb1c3,Bc3e4,Be4g5][%mdl 32]} d5 {[%emt 0:00:30]} 5. Bg5 {[%emt 0:01:30]} Ne4 {[%emt 0:15:30]} 6. Bf4 {[%emt 0:07:30] [#]} ({Avoid the trap} 6. Nxd5 $2 Nxg5 7. Nxg5 e6 $19) 6... dxc4 $146 {[%emt 0:31:30][%mdl 8192] White stays focused until the end. D91: Grünfeld: 4 Nf3 Bg7 5 Bg5.} ({Predecessor:} 6... Nxc3 7. bxc3 dxc4 8. e4 b5 9. a4 c6 10. h4 Bg4 11. h5 Bxh5 12. Rxh5 gxh5 13. e5 Qd5 14. Qe2 b4 15. cxb4 Na6 {½-½ (60) Giri,A (2773)-Duda,J (2750) Oslo 2022}) 7. Nxe4 $18 {[%emt 0:00:30]} Be6 {[%emt 0:00:30]} 8. e3 {[%emt 0:00:30]} b6 {[%emt 0:00:30] White is winning.} 9. Qb1 {[%emt 0:00:30]} c3 {[%emt 0:00:30]} 10. bxc3 {[%emt 0:02:30]} Bd5 {[%emt 0:01:30]} 11. Neg5 {[%emt 0:01:30]} h6 {[%emt 0:00:30]} 12. e4 {[%emt 0:03:30]} (12. Ne4 $142) 12... Be6 $2 {[%emt 0:00:00]} (12... hxg5 13. Nxg5 (13. exd5 gxf4 14. Bc4 Rh5 $16) (13. Bxg5 Bb7 $16) 13... Bc6) 13. Be5 {[%emt 0:02:30]} O-O {[%emt 0:05:00]} 14. d5 {[%emt 0:02:30]} Bd7 {[%emt 0:01:30]} 15. Bc4 {[%emt 0:01:30]} c6 $2 {[%emt 0:00:00]} (15... hxg5 $16 16. Bxg7 Kxg7) 16. O-O $2 {[%emt 0:01:30]} cxd5 $2 {[%emt 0:00:00]} (16... hxg5 $16 17. Bxg7 Kxg7) 17. exd5 {[%emt 0:00:30]} Bf5 $2 {[%emt 0:02:30]} (17... hxg5 18. Bxg7 Bf5) 18. Qc1 {[%emt 0:08:30]} (18. Ne4 $142) 18... Be4 $2 {[%emt 0:01:30]} (18... hxg5 19. Bxg7 (19. Qxg5 Bxe5 20. Nxe5 Qd6 $16) 19... Kxg7 20. Qxg5 Nd7) 19. Bxg7 {[%emt 0:01:30]} Kxg7 {[%emt 0:00:00]} 20. Qf4 {[%emt 0:08:30]} Bxf3 {[%emt 0:00:00]} 21. Qxf3 $2 {[%emt 0:00:30]} ({Weaker is} 21. gxf3 hxg5 22. Qxg5 Nd7 $14) (21. Qe5+ $18 Kg8 22. Nxf3) 21... Nd7 $2 {[%emt 0:01:30][%mdl 8192]} ({Better is} 21... hxg5 $14 22. Qe3 Nd7) 22. Rfe1 $2 {[%emt 0:01:30]} Rc8 $2 {[%emt 0:01:30][%mdl 8192]} ({Black should play} 22... hxg5 $14 23. Qe3 Nf6) 23. Ba6 {[%emt 0:03:30]} Rc5 {[%emt 0:00:44] [#]} (23... hxg5 $142 24. Bxc8 Qxc8 25. Rxe7 Nf6) 24. Bf1 $2 {[%emt 0:02:30]} Nf6 $2 {[%emt 0:03:44][%mdl 8192]} (24... hxg5 $11 {and Black is okay.} 25. c4 Re8) 25. c4 $2 {[%emt 0:00:30]} b5 $2 {[%emt 0:01:59][%mdl 8192]} (25... hxg5 $11 26. h3 Re8) 26. Qe3 {[%emt 0:02:30]} Qc7 {[%emt 0:03:44]} 27. cxb5 {[%emt 0:02:30]} Nxd5 $2 {[%emt 0:00:02]} (27... hxg5 $16 {is tougher.} 28. Qxe7 Nxd5 29. Qxg5 Nc3) 28. Qd4+ {[%emt 0:25:14][%mdl 32768] Weighted Error Value: White=2.27/Black=2.07. Loss on time!?} 0-1